Workbook

Sheet 1. Information Sheet
D10: Version 1.0
A12: Account 1589 Global Adjustment (GA) Analysis Workform
B14: Input cells
B15: Drop down cells
B17: Utility Name | C17: ORANGEVILLE HYDRO LIMITED
A19: Note 1 | B19: Year(s) Requested for Disposition
A26: Note 7 | B26: Summary of GA (if multiple years requested for disposition)
B28: Year | C28: Annual Net Change in Expected GA Balance from GA Analysis (cell K51) | D28: Net Change in Principal Balance in the GL (cell C62) | E28: Reconciling Items (sum of cells C63 to C75) | F28: Adjusted Net Change in Principal Balance in the GL (cell C76) | G28: Unresolved Difference | H28: $ Consumption at Actual Rate Paid (cell J51) | I28: Unresolved Difference as % of Expected GA Payments to IESO
B29: 2014 | C29: ='GA 2014'!K51 -> 0 | D29: ='GA 2014'!C62 -> 0 | E29: =SUM('GA 2014'!$C$63:$C$75) -> 0 | F29: ='GA 2014'!$C$76 -> 0 | G29: =F29-C29 -> 0 | H29: ='GA 2014'!$J$51 -> 0 | I29: =IF(ISERROR(G29/H29),0,G29/H29) -> 0
B30: 2015 | C30: ='GA 2015'!K51 -> 0 | D30: ='GA 2015'!C62 -> 0 | E30: =SUM('GA 2015'!$C$63:$C$75) -> 0 | F30: ='GA 2015'!$C$76 -> 0 | G30: =F30-C30 -> 0 | H30: ='GA 2015'!$J$51 -> 0 | I30: =IF(ISERROR(G30/H30),0,G30/H30) -> 0
B31: 2016 | C31: ='GA 2016'!K51 -> -1176.200253 | D31: ='GA 2016'!C62 -> 175457.55 | E31: =SUM('GA 2016'!$C$63:$C$75) -> 517857.32 | F31: ='GA 2016'!$C$76 -> 693314.87 | G31: =F31-C31 -> 694491.0703 | H31: ='GA 2016'!$J$51 -> 12736981.2 | I31: =IF(ISERROR(G31/H31),0,G31/H31) -> 0.05452556293
B32: 2017 | C32: ='GA 2017'!K51 -> 216925.6105 | D32: ='GA 2017'!C62 -> 695800 | E32: =SUM('GA 2017'!$C$63:$C$75) -> -141484 | F32: ='GA 2017'!$C$76 -> 554316 | G32: =F32-C32 -> 337390.3895 | H32: ='GA 2017'!$J$51 -> 10533083.32 | I32: =IF(ISERROR(G32/H32),0,G32/H32) -> 0.03203149347
B33: Cumulative Balance | C33: =SUM(C29:C32) -> 215749.4103 | D33: 871257.55 | E33: 376373.32 | F33: 1247630.87 | G33: =SUM(G29:G32) -> 1031881.46 | H33: 23270064.52 | I33: N/A

Sheet List (hidden)
A1: ALECTRA UTILITIES CORPORATION | B1: HHPNS717
A2: ALGOMA POWER INC. | B2: WKBSV849
A3: ATIKOKAN HYDRO INC. | B3: NJYBW716
A4: BLUEWATER POWER DISTRIBUTION CORPORATION | B4: GQQHM388
A5: BRANTFORD POWER INC. | B5: SFXZP935
A6: BURLINGTON HYDRO INC. | B6: OARZC118
A7: CANADIAN NIAGARA POWER INC. | B7: HJHBH994
A8: CENTRE WELLINGTON HYDRO LTD. | B8: KQEEH473
A9: CHAPLEAU PUBLIC UTILITIES CORPORATION | B9: KQEEH474
A10: COLLUS POWERSTREAM CORP. | B10: CPEFQ593
A11: COOPERATIVE HYDRO EMBRUN INC. | B11: QXHJU641
A12: E.L.K. ENERGY INC. | B12: AVXSO594
A13: ENERGY+ INC. | B13: JMNNR431
A14: ENTEGRUS POWERLINES INC. | B14: JKBZG525
A15: ENWIN UTILITIES LTD. | B15: YEOQG654
A16: ERIE THAMES POWERLINES CORPORATION | B16: PTLUC812
A17: ESPANOLA REGIONAL HYDRO DISTRIBUTION CORPORATION | B17: ADICB565
A18: ESSEX POWERLINES CORPORATION | B18: LRECV427
A19: FESTIVAL HYDRO INC. | B19: KTCNY552
A20: FORT FRANCES POWER CORPORATION | B20: YEPCI143
A21: GREATER SUDBURY HYDRO INC. | B21: GRHTW113
A22: GRIMSBY POWER INCORPORATED | B22: GMGHU415
A23: GUELPH HYDRO ELECTRIC SYSTEMS INC. | B23: YTPWF351
A24: HALTON HILLS HYDRO INC. | B24: YCYKQ642
A25: HEARST POWER DISTRIBUTION COMPANY LTD. | B25: ADZFM459
A26: HYDRO 2000 INC. | B26: RVWKN794
A27: HYDRO HAWKESBURY INC. | B27: KESKM585
A28: HYDRO ONE NETWORKS INC. | B28: MQFNL784
A29: HYDRO ONE REMOTE COMMUNITIES INC. | B29: FNDHH648
A30: HYDRO OTTAWA LIMITED | B30: PTREM828
A31: INNPOWER CORPORATION | B31: UBBYF452
A32: KENORA HYDRO ELECTRIC CORPORATION LTD. | B32: NSBED625
A33: KINGSTON HYDRO CORPORATION | B33: TXKTT167
A34: KITCHENER-WILMOT HYDRO INC. | B34: ZHKLA874
A35: LAKEFRONT UTILITIES INC. | B35: YLJHT264
A36: LAKELAND POWER DISTRIBUTION LTD. | B36: YLCEC559
A37: LONDON HYDRO INC. | B37: NHKJF259
A38: MIDLAND POWER UTILITY CORPORATION | B38: SLRXO177
A39: MILTON HYDRO DISTRIBUTION INC. | B39: UIFEM157
A40: NEWMARKET - TAY POWER DISTRIBUTION LTD. | B40: RUZIU984
A41: NIAGARA PENINSULA ENERGY INC. | B41: KSUYD122
A42: NIAGARA-ON-THE-LAKE HYDRO INC. | B42: QHCKN852
A43: NORTH BAY HYDRO DISTRIBUTION LIMITED | B43: FUIJX538
A44: NORTHERN ONTARIO WIRES INC. | B44: PWKJP953
A45: OAKVILLE HYDRO ELECTRICITY DISTRIBUTION INC. | B45: JEGGW178
A46: ORANGEVILLE HYDRO LIMITED | B46: TVKSH414
A47: ORILLIA POWER DISTRIBUTION CORPORATION | B47: DUISI693
A48: OSHAWA PUC NETWORKS INC. | B48: PQZCY963
A49: OTTAWA RIVER POWER CORPORATION | B49: GTLBW445
A50: PETERBOROUGH DISTRIBUTION INCORPORATED | B50: XCFPH269
A51: PUC DISTRIBUTION INC. | B51: MLWYG784
A52: RENFREW HYDRO INC. | B52: QDKIF127
A53: RIDEAU ST. LAWRENCE DISTRIBUTION INC. | B53: AMZEN437
A54: SIOUX LOOKOUT HYDRO INC. | B54: ACEVX242
A55: ST. THOMAS ENERGY INC. | B55: DSPWZ318
A56: THUNDER BAY HYDRO ELECTRICITY DISTRIBUTION INC. | B56: OLIUU862
A57: TILLSONBURG HYDRO INC. | B57: OLIUU863
A58: TORONTO HYDRO-ELECTRIC SYSTEM LIMITED | B58: OLIUU864
A59: VERIDIAN CONNECTIONS INC. | B59: OLIUU865
A60: WASAGA DISTRIBUTION INC. | B60: OLIUU866
A61: WATERLOO NORTH HYDRO INC. | B61: OLIUU867
A62: WELLAND HYDRO-ELECTRIC SYSTEM CORP. | B62: OLIUU868
A63: WELLINGTON NORTH POWER INC. | B63: OLIUU869
A64: WEST COAST HURON ENERGY INC. | B64: OLIUU870
A65: WESTARIO POWER INC. | B65: OLIUU871
A66: WHITBY HYDRO ELECTRIC CORPORATION | B66: OLIUU872

Sheet GA Analysis (hidden)
A12: Account 1589 Global Adjustment (GA) Analysis Workform
B14: Input cells | X14: 2014
B15: Drop down cells
X16: 2015
A17: Note 1 | B17: Year(s) Requested for Disposition | X17: 2016
A20: Note 2 | B20: Consumption Data Excluding for Loss Factor (Data to agree with RRR as applicable)
B21: Year
B22: Total Metered excluding WMP | C22: C = A+B | D22: =D23+D24 -> 0 | E22: kWh | F22: 1
B23: RPP | C23: A | E23: kWh | F23: =IFERROR(D23/$D$22,0) -> 0
B24: Non RPP | C24: B = D+E | D24: =D25+D26 -> 0 | E24: kWh | F24: =IFERROR(D24/$D$22,0) -> 0
B25: Non-RPP Class A | C25: D | E25: kWh | F25: =IFERROR(D25/$D$22,0) -> 0
B26: Non-RPP Class B* | C26: E | E26: kWh | F26: =IFERROR(D26/$D$22,0) -> 0
B27: *Non-RPP Class B consumption reported in this table is not expected to directly agree with the Non-RPP Class B Including Loss Adjusted Billed Consumption in the GA Analysis of Expected Balance table below. The difference should be equal to the loss factor.
A29: Note 3 | B29: GA Billing Rate
B31: GA is billed on the
B33: GA Billing Rate Description
A43: Note 4 | B43: Analysis of Expected GA Amount
B44: Year | N44: GA Rates per IESO website
B45: Calendar Month | C45: Non-RPP Class B Including Loss Factor Billed Consumption (kWh) | D45: Deduct Previous Month Unbilled Loss Adjusted Consumption (kWh) | E45: Add Current Month Unbilled Loss Adjusted Consumption (kWh) | F45: Non-RPP Class B Including Loss Adjusted Consumption, Adjusted for Unbilled (kWh) | G45: GA Rate Billed ($/kWh) | H45: $ Consumption at GA Rate Billed | I45: GA Actual Rate Paid ($/kWh) | J45: $ Consumption at Actual Rate Paid | K45: Expected GA Variance ($) | O45: 2017 | R45: 2016 | U45: 2015
C46: F | D46: G | E46: H | F46: I = F-G+H | G46: J | H46: K = I*J | I46: L | J46: M = I*L | K46: =M-K | N46: ($/kWh) | O46: First Estimate | P46: Second Estimate | Q46: Actual | R46: First Estimate | S46: Second Estimate | T46: Actual | U46: First Estimate | V46: Second Estimate | W46: Actual
B47: January | F47: =C47-D47+E47 -> 0 | H47: =F47*G47 -> 0 | J47: =F47*I47 -> 0 | K47: =J47-H47 -> 0 | N47: January | O47: 0.06687 | P47: 0.08677 | Q47: 0.08227 | R47: 0.08423 | S47: 0.09214 | T47: 0.09179 | U47: 0.05549 | V47: 0.06161 | W47: 0.05068
B48: February | F48: =C48-D48+E48 -> 0 | H48: =F48*G48 -> 0 | J48: =F48*I48 -> 0 | K48: =J48-H48 -> 0 | N48: February | O48: 0.10559 | P48: 0.0843 | Q48: 0.08639 | R48: 0.10384 | S48: 0.09678 | T48: 0.09851 | U48: 0.06981 | V48: 0.04095 | W48: 0.03961
B49: March | F49: 0 | H49: 0 | J49: 0 | K49: 0 | N49: March | O49: 0.08409 | P49: 0.06886 | Q49: 0.07135 | R49: 0.09022 | S49: 0.10299 | T49: 0.1061 | U49: 0.03604 | V49: 0.0574 | W49: 0.0629
B50: April | F50: 0 | H50: 0 | J50: 0 | K50: 0 | N50: April | O50: 0.06874 | P50: 0.10218 | Q50: 0.10778 | R50: 0.12115 | S50: 0.11177 | T50: 0.11132 | U50: 0.06705 | V50: 0.09268 | W50: 0.09559
B51: May | F51: 0 | H51: 0 | J51: 0 | K51: 0 | N51: May | O51: 0.10623 | P51: 0.12776 | Q51: 0.12307 | R51: 0.10405 | S51: 0.11493 | T51: 0.10749 | U51: 0.09416 | V51: 0.0973 | W51: 0.09668
B52: June | F52: 0 | H52: 0 | J52: 0 | K52: 0 | N52: June | O52: 0.11954 | P52: 0.12536 | Q52: 0.11848 | R52: 0.1165 | S52: 0.0936 | T52: 0.09545 | U52: 0.09228 | V52: 0.09768 | W52: 0.0954
B53: July | F53: 0 | H53: 0 | J53: 0 | K53: 0 | N53: July | O53: 0.10652 | P53: 0.10197 | Q53: 0.1128 | R53: 0.07667 | S53: 0.08412 | T53: 0.08306 | U53: 0.08888 | V53: 0.08413 | W53: 0.07883
B54: August | F54: 0 | H54: 0 | J54: 0 | K54: 0 | N54: August | O54: 0.115 | P54: 0.10476 | Q54: 0.10109 | R54: 0.08569 | S54: 0.0705 | T54: 0.07103 | U54: 0.08805 | V54: 0.07355 | W54: 0.0801
B55: September | F55: 0 | H55: 0 | J55: 0 | K55: 0 | N55: September | O55: 0.12739 | P55: 0.09895 | Q55: 0.08864 | R55: 0.0706 | S55: 0.09148 | T55: 0.09531 | U55: 0.0827 | V55: 0.07191 | W55: 0.06703
B56: October | F56: 0 | H56: 0 | J56: 0 | K56: 0 | N56: October | O56: 0.10212 | P56: 0.11973 | Q56: 0.12563 | R56: 0.0972 | S56: 0.1178 | T56: 0.11226 | U56: 0.06371 | V56: 0.07193 | W56: 0.07544
B57: November | F57: 0 | H57: 0 | J57: 0 | K57: 0 | N57: November | O57: 0.11164 | P57: 0.09669 | Q57: 0.09704 | R57: 0.12271 | S57: 0.115 | T57: 0.11109 | U57: 0.07623 | V57: 0.12448 | W57: 0.1132
B58: December | F58: 0 | H58: 0 | J58: 0 | K58: 0 | N58: December | O58: 0.08391 | P58: 0.09669 | Q58: 0.09207 | R58: 0.10594 | S58: 0.07872 | T58: 0.08708 | U58: 0.11462 | V58: 0.08809 | W58: 0.09471
B59: Net Change in Expected GA Balance in the Year (i.e. Transactions in the Year) | C59: =SUM(C47:C58) -> 0 | D59: =SUM(D47:D58) -> 0 | E59: =SUM(E47:E58) -> 0 | F59: =SUM(F47:F58) -> 0 | H59: =SUM(H47:H58) -> 0 | J59: =SUM(J47:J58) -> 0 | K59: =SUM(K47:K58) -> 0
A62: Note 5 | B62: Reconciling Items
B64: Item | C64: Applicability of Reconciling Item (Y/N) | D64: Amount (Quantify if it is a significant reconciling item) | E64: Explanation
A65: Net Change in Principal Balance in the GL (i.e. Transactions in the Year)
A66: 1a | B66: Remove impacts to GA from prior year RPP Settlement true up process that are booked in current year
A67: 1b | B67: Add impacts to GA from current year RPP Settlement true up process that are booked in subsequent year
A68: 2a | B68: Remove prior year end unbilled to actual revenue differences
A69: 2b | B69: Add current year end unbilled to actual revenue differences
A70: 3a | B70: Remove difference between prior year accrual to forecast from long term load transfers
A71: 3b | B71: Add difference between current year accrual to forecast from long term load transfers
A72: 4 | B72: Remove GA balances pertaining to Class A customers
A73: 5 | B73: Significant prior period billing adjustments included in current year GL balance but would not be included in the billing consumption used in the GA Analysis
A74: 6 | B74: Differences in GA IESO posted rate and rate charged on IESO invoice
A75: 7
A76: 8
A77: 9
A78: 10
A79: Note 6 | B79: Adjusted Net Change in Principal Balance in the GL | D79: =SUM(D65:D78) -> 0
B80: Net Change in Expected GA Balance in the Year Per Analysis | D80: =K59 -> 0
B81: Unresolved Difference | D81: =D79-D80 -> 0
B82: Unresolved Difference as % of Expected GA Payments to IESO | D82: =IF(ISERROR(D81/J59),0,D81/J59) -> 0 | E82: =IF(AND(D82<0.01,D82>-0.01),"","Unresolved differences of greater than + or - 1% should be explained") -> 
A85: Note 7 | B85: Summary of GA (if multiple years requested for disposition)
B87: Year | C87: Annual Net Change in Expected GA Balance from GA Analysis (cell K59) | D87: Net Change in Principal Balance in the GL (cell D65) | E87: Reconciling Items (sum of cells D66 to D78) | F87: Adjusted Net Change in Principal Balance in the GL | G87: Unresolved Difference | H87: Payments to IESO (cell J59) | I87: Unresolved Difference as % of Expected GA Payments to IESO
F88: =SUM(D88:E88) -> 0 | G88: =F88-C88 -> 0 | I88: =IF(ISERROR(G88/H88),0,G88/H88) -> 0
F89: =SUM(D89:E89) -> 0 | G89: =F89-C89 -> 0 | I89: =IF(ISERROR(G89/H89),0,G89/H89) -> 0
F90: =SUM(D90:E90) -> 0 | G90: =F90-C90 -> 0 | I90: =IF(ISERROR(G90/H90),0,G90/H90) -> 0
F91: =SUM(D91:E91) -> 0 | G91: =F91-C91 -> 0 | I91: =IF(ISERROR(G91/H91),0,G91/H91) -> 0
B92: Cumulative Balance | C92: =SUM(C88:C91) -> 0 | D92: 0 | E92: 0 | F92: 0 | G92: =SUM(G88:G91) -> 0 | H92: 0 | I92: N/A
B95: Additional Notes and Comments

Sheet GA 2014 (hidden)
A12: Note 2 | B12: Consumption Data Excluding for Loss Factor (Data to agree with RRR as applicable)
B13: Year | D13: 2014
B14: Total Metered excluding WMP | C14: C = A+B | D14: =D15+D16 -> 0 | E14: kWh | F14: 1
B15: RPP | C15: A | E15: kWh | F15: =IFERROR(D15/$D$14,0) -> 0
B16: Non RPP | C16: B = D+E | D16: =D17+D18 -> 0 | E16: kWh | F16: =IFERROR(D16/$D$14,0) -> 0
B17: Non-RPP Class A | C17: D | E17: kWh | F17: =IFERROR(D17/$D$14,0) -> 0
B18: Non-RPP Class B* | C18: E | E18: kWh | F18: =IFERROR(D18/$D$14,0) -> 0
B19: *Non-RPP Class B consumption reported in this table is not expected to directly agree with the Non-RPP Class B Including Loss Adjusted Billed Consumption in the GA Analysis of Expected Balance table below. The difference should be equal to the loss factor.
A21: Note 3 | B21: GA Billing Rate
B23: GA is billed on the
B25: Please confirm that the GA Rate used for unbilled revenue is the same as the one used for billed revenue in any particular month
A35: Note 4 | B35: Analysis of Expected GA Amount
B36: Year | C36: 2014
B37: Calendar Month | C37: Non-RPP Class B Including Loss Factor Billed Consumption (kWh) | D37: Deduct Previous Month Unbilled Loss Adjusted Consumption (kWh) | E37: Add Current Month Unbilled Loss Adjusted Consumption (kWh) | F37: Non-RPP Class B Including Loss Adjusted Consumption, Adjusted for Unbilled (kWh) | G37: GA Rate Billed ($/kWh) | H37: $ Consumption at GA Rate Billed | I37: GA Actual Rate Paid ($/kWh) | J37: $ Consumption at Actual Rate Paid | K37: Expected GA Variance ($)
C38: F | D38: G | E38: H | F38: I = F-G+H | G38: J | H38: K = I*J | I38: L | J38: M = I*L | K38: =M-K
B39: January | F39: =C39-D39+E39 -> 0 | G39: =IF($C$23="1st Estimate",'GA Rates'!N4,IF($C$23="2nd Estimate",'GA Rates'!O4,IF($C$23="Actual",'GA Rates'!P4,0))) -> 0 | H39: =F39*G39 -> 0 | I39: =VLOOKUP(B39,'GA Rates'!$M$3:$P$15,4,FALSE) -> 0.01261 | J39: =F39*I39 -> 0 | K39: =J39-H39 -> 0
B40: February | F40: =C40-D40+E40 -> 0 | G40: =IF($C$23="1st Estimate",'GA Rates'!N5,IF($C$23="2nd Estimate",'GA Rates'!O5,IF($C$23="Actual",'GA Rates'!P5,0))) -> 0 | H40: =F40*G40 -> 0 | I40: =VLOOKUP(B40,'GA Rates'!$M$3:$P$15,4,FALSE) -> 0.0133 | J40: =F40*I40 -> 0 | K40: =J40-H40 -> 0
B41: March | F41: 0 | G41: =IF($C$23="1st Estimate",'GA Rates'!N6,IF($C$23="2nd Estimate",'GA Rates'!O6,IF($C$23="Actual",'GA Rates'!P6,0))) -> 0 | H41: 0 | I41: =VLOOKUP(B41,'GA Rates'!$M$3:$P$15,4,FALSE) -> -0.00027 | J41: 0 | K41: 0
B42: April | F42: 0 | G42: =IF($C$23="1st Estimate",'GA Rates'!N7,IF($C$23="2nd Estimate",'GA Rates'!O7,IF($C$23="Actual",'GA Rates'!P7,0))) -> 0 | H42: 0 | I42: =VLOOKUP(B42,'GA Rates'!$M$3:$P$15,4,FALSE) -> 0.05198 | J42: 0 | K42: 0
B43: May | F43: 0 | G43: =IF($C$23="1st Estimate",'GA Rates'!N8,IF($C$23="2nd Estimate",'GA Rates'!O8,IF($C$23="Actual",'GA Rates'!P8,0))) -> 0 | H43: 0 | I43: =VLOOKUP(B43,'GA Rates'!$M$3:$P$15,4,FALSE) -> 0.07196 | J43: 0 | K43: 0
B44: June | F44: 0 | G44: =IF($C$23="1st Estimate",'GA Rates'!N9,IF($C$23="2nd Estimate",'GA Rates'!O9,IF($C$23="Actual",'GA Rates'!P9,0))) -> 0 | H44: 0 | I44: =VLOOKUP(B44,'GA Rates'!$M$3:$P$15,4,FALSE) -> 0.06025 | J44: 0 | K44: 0
B45: July | F45: 0 | G45: =IF($C$23="1st Estimate",'GA Rates'!N10,IF($C$23="2nd Estimate",'GA Rates'!O10,IF($C$23="Actual",'GA Rates'!P10,0))) -> 0 | H45: 0 | I45: =VLOOKUP(B45,'GA Rates'!$M$3:$P$15,4,FALSE) -> 0.06256 | J45: 0 | K45: 0
B46: August | F46: 0 | G46: =IF($C$23="1st Estimate",'GA Rates'!N11,IF($C$23="2nd Estimate",'GA Rates'!O11,IF($C$23="Actual",'GA Rates'!P11,0))) -> 0 | H46: 0 | I46: =VLOOKUP(B46,'GA Rates'!$M$3:$P$15,4,FALSE) -> 0.06761 | J46: 0 | K46: 0
B47: September | F47: 0 | G47: =IF($C$23="1st Estimate",'GA Rates'!N12,IF($C$23="2nd Estimate",'GA Rates'!O12,IF($C$23="Actual",'GA Rates'!P12,0))) -> 0 | H47: 0 | I47: =VLOOKUP(B47,'GA Rates'!$M$3:$P$15,4,FALSE) -> 0.07963 | J47: 0 | K47: 0
B48: October | F48: 0 | G48: =IF($C$23="1st Estimate",'GA Rates'!N13,IF($C$23="2nd Estimate",'GA Rates'!O13,IF($C$23="Actual",'GA Rates'!P13,0))) -> 0 | H48: 0 | I48: =VLOOKUP(B48,'GA Rates'!$M$3:$P$15,4,FALSE) -> 0.10014 | J48: 0 | K48: 0
B49: November | F49: 0 | G49: =IF($C$23="1st Estimate",'GA Rates'!N14,IF($C$23="2nd Estimate",'GA Rates'!O14,IF($C$23="Actual",'GA Rates'!P14,0))) -> 0 | H49: 0 | I49: =VLOOKUP(B49,'GA Rates'!$M$3:$P$15,4,FALSE) -> 0.08232 | J49: 0 | K49: 0
B50: December | F50: 0 | G50: =IF($C$23="1st Estimate",'GA Rates'!N15,IF($C$23="2nd Estimate",'GA Rates'!O15,IF($C$23="Actual",'GA Rates'!P15,0))) -> 0 | H50: 0 | I50: =VLOOKUP(B50,'GA Rates'!$M$3:$P$15,4,FALSE) -> 0.07444 | J50: 0 | K50: 0
B51: Net Change in Expected GA Balance in the Year (i.e. Transactions in the Year) | C51: =SUM(C39:C50) -> 0 | D51: =SUM(D39:D50) -> 0 | E51: =SUM(E39:E50) -> 0 | F51: =SUM(F39:F50) -> 0 | H51: =SUM(H39:H50) -> 0 | J51: =SUM(J39:J50) -> 0 | K51: =SUM(K39:K50) -> 0
H57: Calculated Loss Factor | K57: =IFERROR(F51/D18,0) -> 0
A59: Note 5 | B59: Reconciling Items
B61: Item | C61: Amount | D61: Explanation
A62: Net Change in Principal Balance in the GL (i.e. Transactions in the Year)
A63: 1a | B63: True-up of GA Charges based on Actual Non-RPP Volumes - prior year
A64: 1b | B64: True-up of GA Charges based on Actual Non-RPP Volumes - current year
A65: 2a | B65: Remove prior year end unbilled to actual revenue differences
A66: 2b | B66: Add current year end unbilled to actual revenue differences
A67: 3a | B67: Remove difference between prior year accrual/forecast to actual from long term load transfers
A68: 3b | B68: Add difference between current year accrual/forecast to actual from long term load transfers
A69: 4 | B69: Remove GA balances pertaining to Class A customers
A70: 5 | B70: Significant prior period billing adjustments recorded in current year
A71: 6 | B71: Differences in GA IESO posted rate and rate charged on IESO invoice
A72: 7 | B72: Differences in actual system losses and billed TLFs
A73: 8 | B73: Others as justified by distributor
A74: 9
A75: 10
A76: Note 6 | B76: Adjusted Net Change in Principal Balance in the GL | C76: =SUM(C62:C75) -> 0
B77: Net Change in Expected GA Balance in the Year Per Analysis | C77: =K51 -> 0
B78: Unresolved Difference | C78: =C76-C77 -> 0
B79: Unresolved Difference as % of Expected GA Payments to IESO | C79: =IF(ISERROR(C78/J51),0,C78/J51) -> 0 | D79: =IF(AND(C79<0.01,C79>-0.01),"","Unresolved differences of greater than + or - 1% should be explained") -> 

Sheet GA 2015 (hidden)
A12: Note 2 | B12: Consumption Data Excluding for Loss Factor (Data to agree with RRR as applicable)
B13: Year | D13: 2015
B14: Total Metered excluding WMP | C14: C = A+B | D14: =D15+D16 -> 0 | E14: kWh | F14: 1
B15: RPP | C15: A | E15: kWh | F15: =IFERROR(D15/$D$14,0) -> 0
B16: Non RPP | C16: B = D+E | D16: =D17+D18 -> 0 | E16: kWh | F16: =IFERROR(D16/$D$14,0) -> 0
B17: Non-RPP Class A | C17: D | E17: kWh | F17: =IFERROR(D17/$D$14,0) -> 0
B18: Non-RPP Class B* | C18: E | E18: kWh | F18: =IFERROR(D18/$D$14,0) -> 0
B19: *Non-RPP Class B consumption reported in this table is not expected to directly agree with the Non-RPP Class B Including Loss Adjusted Billed Consumption in the GA Analysis of Expected Balance table below. The difference should be equal to the loss factor.
A21: Note 3 | B21: GA Billing Rate
B23: GA is billed on the
B25: Please confirm that the GA Rate used for unbilled revenue is the same as the one used for billed revenue in any paticular month
A35: Note 4 | B35: Analysis of Expected GA Amount
B36: Year | C36: 2015
B37: Calendar Month | C37: Non-RPP Class B Including Loss Factor Billed Consumption (kWh) | D37: Deduct Previous Month Unbilled Loss Adjusted Consumption (kWh) | E37: Add Current Month Unbilled Loss Adjusted Consumption (kWh) | F37: Non-RPP Class B Including Loss Adjusted Consumption, Adjusted for Unbilled (kWh) | G37: GA Rate Billed ($/kWh) | H37: $ Consumption at GA Rate Billed | I37: GA Actual Rate Paid ($/kWh) | J37: $ Consumption at Actual Rate Paid | K37: Expected GA Variance ($)
C38: F | D38: G | E38: H | F38: I = F-G+H | G38: J | H38: K = I*J | I38: L | J38: M = I*L | K38: =M-K
B39: January | F39: =C39-D39+E39 -> 0 | G39: =IF($C$23="1st Estimate",'GA Rates'!J4,IF($C$23="2nd Estimate",'GA Rates'!K4,IF($C$23="Actual",'GA Rates'!L4,0))) -> 0 | H39: =F39*G39 -> 0 | I39: =VLOOKUP(B39,'GA Rates'!$I$3:$L$15,4,FALSE) -> 0.05068 | J39: =F39*I39 -> 0 | K39: =J39-H39 -> 0
B40: February | F40: =C40-D40+E40 -> 0 | G40: =IF($C$23="1st Estimate",'GA Rates'!J5,IF($C$23="2nd Estimate",'GA Rates'!K5,IF($C$23="Actual",'GA Rates'!L5,0))) -> 0 | H40: =F40*G40 -> 0 | I40: =VLOOKUP(B40,'GA Rates'!$I$3:$L$15,4,FALSE) -> 0.03961 | J40: =F40*I40 -> 0 | K40: =J40-H40 -> 0
B41: March | F41: 0 | G41: =IF($C$23="1st Estimate",'GA Rates'!J6,IF($C$23="2nd Estimate",'GA Rates'!K6,IF($C$23="Actual",'GA Rates'!L6,0))) -> 0 | H41: 0 | I41: =VLOOKUP(B41,'GA Rates'!$I$3:$L$15,4,FALSE) -> 0.0629 | J41: 0 | K41: 0
B42: April | F42: 0 | G42: =IF($C$23="1st Estimate",'GA Rates'!J7,IF($C$23="2nd Estimate",'GA Rates'!K7,IF($C$23="Actual",'GA Rates'!L7,0))) -> 0 | H42: 0 | I42: =VLOOKUP(B42,'GA Rates'!$I$3:$L$15,4,FALSE) -> 0.09559 | J42: 0 | K42: 0
B43: May | F43: 0 | G43: =IF($C$23="1st Estimate",'GA Rates'!J8,IF($C$23="2nd Estimate",'GA Rates'!K8,IF($C$23="Actual",'GA Rates'!L8,0))) -> 0 | H43: 0 | I43: =VLOOKUP(B43,'GA Rates'!$I$3:$L$15,4,FALSE) -> 0.09668 | J43: 0 | K43: 0
B44: June | F44: 0 | G44: =IF($C$23="1st Estimate",'GA Rates'!J9,IF($C$23="2nd Estimate",'GA Rates'!K9,IF($C$23="Actual",'GA Rates'!L9,0))) -> 0 | H44: 0 | I44: =VLOOKUP(B44,'GA Rates'!$I$3:$L$15,4,FALSE) -> 0.0954 | J44: 0 | K44: 0
B45: July | F45: 0 | G45: =IF($C$23="1st Estimate",'GA Rates'!J10,IF($C$23="2nd Estimate",'GA Rates'!K10,IF($C$23="Actual",'GA Rates'!L10,0))) -> 0 | H45: 0 | I45: =VLOOKUP(B45,'GA Rates'!$I$3:$L$15,4,FALSE) -> 0.07883 | J45: 0 | K45: 0
B46: August | F46: 0 | G46: =IF($C$23="1st Estimate",'GA Rates'!J11,IF($C$23="2nd Estimate",'GA Rates'!K11,IF($C$23="Actual",'GA Rates'!L11,0))) -> 0 | H46: 0 | I46: =VLOOKUP(B46,'GA Rates'!$I$3:$L$15,4,FALSE) -> 0.0801 | J46: 0 | K46: 0
B47: September | F47: 0 | G47: =IF($C$23="1st Estimate",'GA Rates'!J12,IF($C$23="2nd Estimate",'GA Rates'!K12,IF($C$23="Actual",'GA Rates'!L12,0))) -> 0 | H47: 0 | I47: =VLOOKUP(B47,'GA Rates'!$I$3:$L$15,4,FALSE) -> 0.06703 | J47: 0 | K47: 0
B48: October | F48: 0 | G48: =IF($C$23="1st Estimate",'GA Rates'!J13,IF($C$23="2nd Estimate",'GA Rates'!K13,IF($C$23="Actual",'GA Rates'!L13,0))) -> 0 | H48: 0 | I48: =VLOOKUP(B48,'GA Rates'!$I$3:$L$15,4,FALSE) -> 0.07544 | J48: 0 | K48: 0
B49: November | F49: 0 | G49: =IF($C$23="1st Estimate",'GA Rates'!J14,IF($C$23="2nd Estimate",'GA Rates'!K14,IF($C$23="Actual",'GA Rates'!L14,0))) -> 0 | H49: 0 | I49: =VLOOKUP(B49,'GA Rates'!$I$3:$L$15,4,FALSE) -> 0.1132 | J49: 0 | K49: 0
B50: December | F50: 0 | G50: =IF($C$23="1st Estimate",'GA Rates'!J15,IF($C$23="2nd Estimate",'GA Rates'!K15,IF($C$23="Actual",'GA Rates'!L15,0))) -> 0 | H50: 0 | I50: =VLOOKUP(B50,'GA Rates'!$I$3:$L$15,4,FALSE) -> 0.09471 | J50: 0 | K50: 0
B51: Net Change in Expected GA Balance in the Year (i.e. Transactions in the Year) | C51: =SUM(C39:C50) -> 0 | D51: =SUM(D39:D50) -> 0 | E51: =SUM(E39:E50) -> 0 | F51: =SUM(F39:F50) -> 0 | H51: =SUM(H39:H50) -> 0 | J51: =SUM(J39:J50) -> 0 | K51: =SUM(K39:K50) -> 0
H57: Calculated Loss Factor | K57: =IFERROR(F51/D18,0) -> 0
A59: Note 5 | B59: Reconciling Items
B61: Item | C61: Amount | D61: Explanation
A62: Net Change in Principal Balance in the GL (i.e. Transactions in the Year)
A63: 1a | B63: True-up of GA Charges based on Actual Non-RPP Volumes - prior year
A64: 1b | B64: True-up of GA Charges based on Actual Non-RPP Volumes - current year
A65: 2a | B65: Remove prior year end unbilled to actual revenue differences
A66: 2b | B66: Add current year end unbilled to actual revenue differences
A67: 3a | B67: Remove difference between prior year accrual/forecast to actual from long term load transfers
A68: 3b | B68: Add difference between current year accrual/forecast to actual from long term load transfers
A69: 4 | B69: Remove GA balances pertaining to Class A customers
A70: 5 | B70: Significant prior period billing adjustments recorded in current year
A71: 6 | B71: Differences in GA IESO posted rate and rate charged on IESO invoice
A72: 7 | B72: Differences in actual system losses and billed TLFs
A73: 8 | B73: Others as justified by distributor
A74: 9
A75: 10
A76: Note 6 | B76: Adjusted Net Change in Principal Balance in the GL | C76: =SUM(C62:C75) -> 0
B77: Net Change in Expected GA Balance in the Year Per Analysis | C77: =K51 -> 0
B78: Unresolved Difference | C78: =C76-C77 -> 0
B79: Unresolved Difference as % of Expected GA Payments to IESO | C79: =IF(ISERROR(C78/J51),0,C78/J51) -> 0 | D79: =IF(AND(C79<0.01,C79>-0.01),"","Unresolved differences of greater than + or - 1% should be explained") -> 

Sheet GA 2016
A12: Note 2 | B12: Consumption Data Excluding for Loss Factor (Data to agree with RRR as applicable)
B13: Year | D13: 2016
B14: Total Metered excluding WMP | C14: C = A+B | D14: =D15+D16 -> 241665676 | E14: kWh | F14: 1
B15: RPP | C15: A | D15: 117299185 | E15: kWh | F15: =IFERROR(D15/$D$14,0) -> 0.4853779276
B16: Non RPP | C16: B = D+E | D16: =D17+D18 -> 124366491 | E16: kWh | F16: =IFERROR(D16/$D$14,0) -> 0.5146220724
B17: Non-RPP Class A | C17: D | E17: kWh | F17: =IFERROR(D17/$D$14,0) -> 0
B18: Non-RPP Class B* | C18: E | D18: 124366491 | E18: kWh | F18: =IFERROR(D18/$D$14,0) -> 0.5146220724
B19: *Non-RPP Class B consumption reported in this table is not expected to directly agree with the Non-RPP Class B Including Loss Adjusted Billed Consumption in the GA Analysis of Expected Balance table below. The difference should be equal to the loss factor.
A21: Note 3 | B21: GA Billing Rate
B23: GA is billed on the | C23: 2nd Estimate
B25: Please confirm that the GA Rate used for unbilled revenue is the same as the one used for billed revenue in any paticular month
A35: Note 4 | B35: Analysis of Expected GA Amount
B36: Year | C36: 2016
B37: Calendar Month | C37: Non-RPP Class B Including Loss Factor Billed Consumption (kWh) | D37: Deduct Previous Month Unbilled Loss Adjusted Consumption (kWh) | E37: Add Current Month Unbilled Loss Adjusted Consumption (kWh) | F37: Non-RPP Class B Including Loss Adjusted Consumption, Adjusted for Unbilled (kWh) | G37: GA Rate Billed ($/kWh) | H37: $ Consumption at GA Rate Billed | I37: GA Actual Rate Paid ($/kWh) | J37: $ Consumption at Actual Rate Paid | K37: Expected GA Variance ($)
C38: F | D38: G | E38: H | F38: I = F-G+H | G38: J | H38: K = I*J | I38: L | J38: M = I*L | K38: =M-K
B39: January | C39: 10023674.38 | D39: 10086740.27 | E39: 10408936.83 | F39: =C39-D39+E39 -> 10345870.94 | G39: =IF($C$23="1st Estimate",'GA Rates'!F4,IF($C$23="2nd Estimate",'GA Rates'!G4,IF($C$23="Actual",'GA Rates'!H4,0))) -> 0.09214 | H39: =F39*G39 -> 953268.5484 | I39: =VLOOKUP(B39,'GA Rates'!$E$3:$H$15,4,FALSE) -> 0.09179 | J39: =F39*I39 -> 949647.4936 | K39: =J39-H39 -> -3621.054829
B40: February | C40: 11277989.04 | D40: 10408936.83 | E40: 10308648.34 | F40: =C40-D40+E40 -> 11177700.55 | G40: =IF($C$23="1st Estimate",'GA Rates'!F5,IF($C$23="2nd Estimate",'GA Rates'!G5,IF($C$23="Actual",'GA Rates'!H5,0))) -> 0.09678 | H40: =F40*G40 -> 1081777.859 | I40: =VLOOKUP(B40,'GA Rates'!$E$3:$H$15,4,FALSE) -> 0.09851 | J40: =F40*I40 -> 1101115.281 | K40: =J40-H40 -> 19337.42195
B41: March | C41: 9817547.44 | D41: 10308648.34 | E41: 11401052.56 | F41: 10909951.66 | G41: =IF($C$23="1st Estimate",'GA Rates'!F6,IF($C$23="2nd Estimate",'GA Rates'!G6,IF($C$23="Actual",'GA Rates'!H6,0))) -> 0.10299 | H41: 1123615.921 | I41: =VLOOKUP(B41,'GA Rates'!$E$3:$H$15,4,FALSE) -> 0.1061 | J41: 1157545.871 | K41: 33929.94966
B42: April | C42: 10935294.65 | D42: 11401052.56 | E42: 11019433.57 | F42: 10553675.66 | G42: =IF($C$23="1st Estimate",'GA Rates'!F7,IF($C$23="2nd Estimate",'GA Rates'!G7,IF($C$23="Actual",'GA Rates'!H7,0))) -> 0.11177 | H42: 1179584.329 | I42: =VLOOKUP(B42,'GA Rates'!$E$3:$H$15,4,FALSE) -> 0.11132 | J42: 1174835.174 | K42: -4749.154047
B43: May | C43: 11006262 | D43: 11019433.57 | E43: 10888099.69 | F43: 10874928.12 | G43: =IF($C$23="1st Estimate",'GA Rates'!F8,IF($C$23="2nd Estimate",'GA Rates'!G8,IF($C$23="Actual",'GA Rates'!H8,0))) -> 0.11493 | H43: 1249855.489 | I43: =VLOOKUP(B43,'GA Rates'!$E$3:$H$15,4,FALSE) -> 0.10749 | J43: 1168946.024 | K43: -80909.46521
B44: June | C44: 10425952.5 | D44: 10888099.69 | E44: 10212324.45 | F44: 9750177.26 | G44: =IF($C$23="1st Estimate",'GA Rates'!F9,IF($C$23="2nd Estimate",'GA Rates'!G9,IF($C$23="Actual",'GA Rates'!H9,0))) -> 0.0936 | H44: 912616.5915 | I44: =VLOOKUP(B44,'GA Rates'!$E$3:$H$15,4,FALSE) -> 0.09545 | J44: 930654.4195 | K44: 18037.82793
B45: July | C45: 11152274.59 | D45: 10212324.45 | E45: 11567300.16 | F45: 12507250.3 | G45: =IF($C$23="1st Estimate",'GA Rates'!F10,IF($C$23="2nd Estimate",'GA Rates'!G10,IF($C$23="Actual",'GA Rates'!H10,0))) -> 0.08412 | H45: 1052109.895 | I45: =VLOOKUP(B45,'GA Rates'!$E$3:$H$15,4,FALSE) -> 0.08306 | J45: 1038852.21 | K45: -13257.68532
B46: August | C46: 11251303.63 | D46: 11567300.16 | E46: 11038762.29 | F46: 10722765.76 | G46: =IF($C$23="1st Estimate",'GA Rates'!F11,IF($C$23="2nd Estimate",'GA Rates'!G11,IF($C$23="Actual",'GA Rates'!H11,0))) -> 0.0705 | H46: 755954.9861 | I46: =VLOOKUP(B46,'GA Rates'!$E$3:$H$15,4,FALSE) -> 0.07103 | J46: 761638.0519 | K46: 5683.065853
B47: September | C47: 11863639.85 | D47: 11038762.29 | E47: 11388711.95 | F47: 12213589.51 | G47: =IF($C$23="1st Estimate",'GA Rates'!F12,IF($C$23="2nd Estimate",'GA Rates'!G12,IF($C$23="Actual",'GA Rates'!H12,0))) -> 0.09148 | H47: 1117299.168 | I47: =VLOOKUP(B47,'GA Rates'!$E$3:$H$15,4,FALSE) -> 0.09531 | J47: 1164077.216 | K47: 46778.04782
B48: October | C48: 10991444.55 | D48: 11388711.95 | E48: 11411183.64 | F48: 11013916.24 | G48: =IF($C$23="1st Estimate",'GA Rates'!F13,IF($C$23="2nd Estimate",'GA Rates'!G13,IF($C$23="Actual",'GA Rates'!H13,0))) -> 0.1178 | H48: 1297439.333 | I48: =VLOOKUP(B48,'GA Rates'!$E$3:$H$15,4,FALSE) -> 0.11226 | J48: 1236422.237 | K48: -61017.09597
B49: November | C49: 11318697.6 | D49: 11411183.64 | E49: 10967739.04 | F49: 10875253 | G49: =IF($C$23="1st Estimate",'GA Rates'!F14,IF($C$23="2nd Estimate",'GA Rates'!G14,IF($C$23="Actual",'GA Rates'!H14,0))) -> 0.115 | H49: 1250654.095 | I49: =VLOOKUP(B49,'GA Rates'!$E$3:$H$15,4,FALSE) -> 0.11109 | J49: 1208131.856 | K49: -42522.23923
B50: December | C50: 10981882.49 | D50: 10967739.04 | E50: 9690902.14 | F50: 9705045.59 | G50: =IF($C$23="1st Estimate",'GA Rates'!F15,IF($C$23="2nd Estimate",'GA Rates'!G15,IF($C$23="Actual",'GA Rates'!H15,0))) -> 0.07872 | H50: 763981.1888 | I50: =VLOOKUP(B50,'GA Rates'!$E$3:$H$15,4,FALSE) -> 0.08708 | J50: 845115.37 | K50: 81134.18113
B51: Net Change in Expected GA Balance in the Year (i.e. Transactions in the Year) | C51: =SUM(C39:C50) -> 131045962.7 | D51: =SUM(D39:D50) -> 130698932.8 | E51: =SUM(E39:E50) -> 130303094.7 | F51: =SUM(F39:F50) -> 130650124.6 | H51: =SUM(H39:H50) -> 12738157.4 | J51: =SUM(J39:J50) -> 12736981.2 | K51: =SUM(K39:K50) -> -1176.200253
H57: Calculated Loss Factor | K57: =IFERROR(F51/D18,0) -> 1.050525134
A59: Note 5 | B59: Reconciling Items
B61: Item | C61: Amount | D61: Explanation
A62: Net Change in Principal Balance in the GL (i.e. Transactions in the Year) | C62: 175457.55
A63: 1a | B63: True-up of GA Charges based on Actual Non-RPP Volumes - prior year
A64: 1b | B64: True-up of GA Charges based on Actual Non-RPP Volumes - current year | C64: 602574.66
A65: 2a | B65: Remove prior year end unbilled to actual revenue differences
A66: 2b | B66: Add current year end unbilled to actual revenue differences
A67: 3a | B67: Remove difference between prior year accrual/forecast to actual from long term load transfers | C67: 91211.06
A68: 3b | B68: Add difference between current year accrual/forecast to actual from long term load transfers | C68: -103347.37
A69: 4 | B69: Remove GA balances pertaining to Class A customers
A70: 5 | B70: Significant prior period billing adjustments recorded in current year
A71: 6 | B71: Differences in GA IESO posted rate and rate charged on IESO invoice
A72: 7 | B72: Differences in actual system losses and billed TLFs
A73: 8 | B73: Others as justified by distributor
A74: 9 | B74: Load transfer for the period of Jan 1/15 to Dec 31/15. | C74: -72581.03 | D74: Booked in G/L in 2016 incorrectly as a credit to Energy instead of GA
A75: 10
A76: Note 6 | B76: Adjusted Net Change in Principal Balance in the GL | C76: =SUM(C62:C75) -> 693314.87
B77: Net Change in Expected GA Balance in the Year Per Analysis | C77: =K51 -> -1176.200253
B78: Unresolved Difference | C78: =C76-C77 -> 694491.0703
B79: Unresolved Difference as % of Expected GA Payments to IESO | C79: =IF(ISERROR(C78/J51),0,C78/J51) -> 0.05452556293 | D79: =IF(AND(C79<0.01,C79>-0.01),"","Unresolved differences of greater than + or - 1% should be explained") -> Unresolved differences of greater than + or - 1% should be explained

Sheet GA 2017
A12: Note 2 | B12: Consumption Data Excluding for Loss Factor (Data to agree with RRR as applicable)
B13: Year | D13: 2017
B14: Total Metered excluding WMP | C14: C = A+B | D14: =VLOOKUP('1. Information Sheet'!C17,'2 1 5 TotalConsumptionData_Dist'!B4:U70,19,FALSE) -> 244388936.2 | E14: kWh | F14: 1
B15: RPP | C15: A | D15: =VLOOKUP('1. Information Sheet'!C17,'2 1 5 TotalConsumptionData_Dist'!B4:U70,7,FALSE) -> 117466613.4 | E15: kWh | F15: =IFERROR(D15/$D$14,0) -> 0.4806543833
B16: Non RPP | C16: B = D+E | D16: =VLOOKUP('1. Information Sheet'!C17,'2 1 5 TotalConsumptionData_Dist'!B4:U70,20,FALSE) -> 126922322.8 | E16: kWh | F16: =IFERROR(D16/$D$14,0) -> 0.5193456167
B17: Non-RPP Class A | C17: D | D17: =VLOOKUP('1. Information Sheet'!C17,'2 1 5 TotalConsumptionData_Dist'!B4:U70,13,FALSE) -> 23243911 | E17: kWh | F17: =IFERROR(D17/$D$14,0) -> 0.09511032438
B18: Non-RPP Class B* | C18: E | D18: =D16-D17 -> 103678411.8 | E18: kWh | F18: =IFERROR(D18/$D$14,0) -> 0.4242352923
B19: *Non-RPP Class B consumption reported in this table is not expected to directly agree with the Non-RPP Class B Including Loss Adjusted Billed Consumption in the GA Analysis of Expected Balance table below. The difference should be equal to the loss factor.
A21: Note 3 | B21: GA Billing Rate
B23: GA is billed on the | C23: 1st Estimate
B25: Please confirm that the GA Rate used for unbilled revenue is the same as the one used for billed revenue in any paticular month
A35: Note 4 | B35: Analysis of Expected GA Amount
B36: Year | C36: 2017
B37: Calendar Month | C37: Non-RPP Class B Including Loss Factor Billed Consumption (kWh) | D37: Deduct Previous Month Unbilled Loss Adjusted Consumption (kWh) | E37: Add Current Month Unbilled Loss Adjusted Consumption (kWh) | F37: Non-RPP Class B Including Loss Adjusted Consumption, Adjusted for Unbilled (kWh) | G37: GA Rate Billed ($/kWh) | H37: $ Consumption at GA Rate Billed | I37: GA Actual Rate Paid ($/kWh) | J37: $ Consumption at Actual Rate Paid | K37: Expected GA Variance ($)
C38: F | D38: G | E38: H | F38: I = F-G+H | G38: J | H38: K = I*J | I38: L | J38: M = I*L | K38: =M-K
B39: January | C39: 9640088.14 | D39: 9690902.14 | E39: 9677325.22 | F39: =C39-D39+E39 -> 9626511.22 | G39: =IF($C$23="1st Estimate",'GA Rates'!B4,IF($C$23="2nd Estimate",'GA Rates'!C4,IF($C$23="Actual",'GA Rates'!D4,0))) -> 0.06687 | H39: =F39*G39 -> 643724.8053 | I39: =VLOOKUP(B39,'GA Rates'!$A$3:$D$15,4,FALSE) -> 0.08227 | J39: =F39*I39 -> 791973.0781 | K39: =J39-H39 -> 148248.2728
B40: February | C40: 11184946.71 | D40: 9677325.22 | E40: 10070139 | F40: =C40-D40+E40 -> 11577760.49 | G40: =IF($C$23="1st Estimate",'GA Rates'!B5,IF($C$23="2nd Estimate",'GA Rates'!C5,IF($C$23="Actual",'GA Rates'!D5,0))) -> 0.10559 | H40: =F40*G40 -> 1222495.73 | I40: =VLOOKUP(B40,'GA Rates'!$A$3:$D$15,4,FALSE) -> 0.08639 | J40: =F40*I40 -> 1000202.729 | K40: =J40-H40 -> -222293.0014
B41: March | C41: 10032727.26 | D41: 10070139 | E41: 11092294.53 | F41: 11054882.79 | G41: =IF($C$23="1st Estimate",'GA Rates'!B6,IF($C$23="2nd Estimate",'GA Rates'!C6,IF($C$23="Actual",'GA Rates'!D6,0))) -> 0.08409 | H41: 929605.0938 | I41: =VLOOKUP(B41,'GA Rates'!$A$3:$D$15,4,FALSE) -> 0.07135 | J41: 788765.8871 | K41: -140839.2067
B42: April | C42: 11253267.31 | D42: 11092294.53 | E42: 10904118.2 | F42: 11065090.98 | G42: =IF($C$23="1st Estimate",'GA Rates'!B7,IF($C$23="2nd Estimate",'GA Rates'!C7,IF($C$23="Actual",'GA Rates'!D7,0))) -> 0.06874 | H42: 760614.354 | I42: =VLOOKUP(B42,'GA Rates'!$A$3:$D$15,4,FALSE) -> 0.10778 | J42: 1192595.506 | K42: 431981.1519
B43: May | C43: 10317915.03 | D43: 10904118.2 | E43: 10639480.97 | F43: 10053277.8 | G43: =IF($C$23="1st Estimate",'GA Rates'!B8,IF($C$23="2nd Estimate",'GA Rates'!C8,IF($C$23="Actual",'GA Rates'!D8,0))) -> 0.10623 | H43: 1067959.701 | I43: =VLOOKUP(B43,'GA Rates'!$A$3:$D$15,4,FALSE) -> 0.12307 | J43: 1237256.899 | K43: 169297.1982
B44: June | C44: 10760108.68 | D44: 10639480.97 | E44: 10598082.29 | F44: 10718710 | G44: =IF($C$23="1st Estimate",'GA Rates'!B9,IF($C$23="2nd Estimate",'GA Rates'!C9,IF($C$23="Actual",'GA Rates'!D9,0))) -> 0.11954 | H44: 1281314.593 | I44: =VLOOKUP(B44,'GA Rates'!$A$3:$D$15,4,FALSE) -> 0.11848 | J44: 1269952.761 | K44: -11361.8326
B45: July | C45: 6049942.43 | D45: 10598082.29 | E45: 11149541.39 | F45: 6601401.53 | G45: =IF($C$23="1st Estimate",'GA Rates'!B10,IF($C$23="2nd Estimate",'GA Rates'!C10,IF($C$23="Actual",'GA Rates'!D10,0))) -> 0.10652 | H45: 703181.291 | I45: =VLOOKUP(B45,'GA Rates'!$A$3:$D$15,4,FALSE) -> 0.1128 | J45: 744638.0926 | K45: 41456.80161
B46: August | C46: 7174324.57 | D46: 11149541.39 | E46: 6994738.258 | F46: 3019521.438 | G46: =IF($C$23="1st Estimate",'GA Rates'!B11,IF($C$23="2nd Estimate",'GA Rates'!C11,IF($C$23="Actual",'GA Rates'!D11,0))) -> 0.115 | H46: 347244.9653 | I46: =VLOOKUP(B46,'GA Rates'!$A$3:$D$15,4,FALSE) -> 0.10109 | J46: 305243.4221 | K46: -42001.5432
B47: September | C47: 7898999.74 | D47: 6994738.258 | E47: 7120454.104 | F47: 8024715.586 | G47: =IF($C$23="1st Estimate",'GA Rates'!B12,IF($C$23="2nd Estimate",'GA Rates'!C12,IF($C$23="Actual",'GA Rates'!D12,0))) -> 0.12739 | H47: 1022268.519 | I47: =VLOOKUP(B47,'GA Rates'!$A$3:$D$15,4,FALSE) -> 0.08864 | J47: 711310.7896 | K47: -310957.729
B48: October | C48: 7663875.29 | D48: 7120454.104 | E48: 7229841.809 | F48: 7773262.995 | G48: =IF($C$23="1st Estimate",'GA Rates'!B13,IF($C$23="2nd Estimate",'GA Rates'!C13,IF($C$23="Actual",'GA Rates'!D13,0))) -> 0.10212 | H48: 793805.6171 | I48: =VLOOKUP(B48,'GA Rates'!$A$3:$D$15,4,FALSE) -> 0.12563 | J48: 976555.0301 | K48: 182749.413
B49: November | C49: 7121569.31 | D49: 7229841.809 | E49: 7159386.638 | F49: 7051114.139 | G49: =IF($C$23="1st Estimate",'GA Rates'!B14,IF($C$23="2nd Estimate",'GA Rates'!C14,IF($C$23="Actual",'GA Rates'!D14,0))) -> 0.11164 | H49: 787186.3825 | I49: =VLOOKUP(B49,'GA Rates'!$A$3:$D$15,4,FALSE) -> 0.09704 | J49: 684240.116 | K49: -102946.2664
B50: December | C50: 7689067.75 | D50: 7159386.638 | E50: 8488989.53 | F50: 9018670.642 | G50: =IF($C$23="1st Estimate",'GA Rates'!B15,IF($C$23="2nd Estimate",'GA Rates'!C15,IF($C$23="Actual",'GA Rates'!D15,0))) -> 0.08391 | H50: 756756.6536 | I50: =VLOOKUP(B50,'GA Rates'!$A$3:$D$15,4,FALSE) -> 0.09207 | J50: 830349.006 | K50: 73592.35244
B51: Net Change in Expected GA Balance in the Year (i.e. Transactions in the Year) | C51: =SUM(C39:C50) -> 106786832.2 | D51: =SUM(D39:D50) -> 112326304.5 | E51: =SUM(E39:E50) -> 111124391.9 | F51: =SUM(F39:F50) -> 105584919.6 | H51: =SUM(H39:H50) -> 10316157.71 | J51: =SUM(J39:J50) -> 10533083.32 | K51: =SUM(K39:K50) -> 216925.6105
C57: Calculated Loss Factor | F57: =IFERROR(F51/D18,0) -> 1.018388667
A59: Note 5 | B59: Reconciling Items
B61: Item | C61: Amount | D61: Explanation
A62: Net Change in Principal Balance in the GL (i.e. Transactions in the Year) | C62: 695800
A63: 1a | B63: True-up of GA Charges based on Actual Non-RPP Volumes - prior year
A64: 1b | B64: True-up of GA Charges based on Actual Non-RPP Volumes - current year | C64: -244831
A65: 2a | B65: Remove prior year end unbilled to actual revenue differences
A66: 2b | B66: Add current year end unbilled to actual revenue differences
A67: 3a | B67: Remove difference between prior year accrual/forecast to actual from long term load transfers | C67: 103347
A68: 3b | B68: Add difference between current year accrual/forecast to actual from long term load transfers
A69: 4 | B69: Remove GA balances pertaining to Class A customers
A70: 5 | B70: Significant prior period billing adjustments recorded in current year
A71: 6 | B71: Differences in GA IESO posted rate and rate charged on IESO invoice
A72: 7 | B72: Differences in actual system losses and billed TLFs
A73: 8 | B73: Others as justified by distributor
A74: 9
A75: 10
A76: Note 6 | B76: Adjusted Net Change in Principal Balance in the GL | C76: =SUM(C62:C75) -> 554316
B77: Net Change in Expected GA Balance in the Year Per Analysis | C77: =K51 -> 216925.6105
B78: Unresolved Difference | C78: =C76-C77 -> 337390.3895
B79: Unresolved Difference as % of Expected GA Payments to IESO | C79: =IF(ISERROR(C78/J51),0,C78/J51) -> 0.03203149347 | D79: =IF(AND(C79<0.01,C79>-0.01),"","Unresolved differences of greater than + or - 1% should be explained") -> Unresolved differences of greater than + or - 1% should be explained

Sheet GA Rates (hidden)
A1: GA Rates per IESO website
B2: 2017 | F2: 2016 | J2: 2015 | N2: 2014
A3: ($/kWh) | B3: First Estimate | C3: Second Estimate | D3: Actual | E3: ($/kWh) | F3: First Estimate | G3: Second Estimate | H3: Actual | I3: ($/kWh) | J3: First Estimate | K3: Second Estimate | L3: Actual | M3: ($/kWh) | N3: First Estimate | O3: Second Estimate | P3: Actual
A4: January | B4: 0.06687 | C4: 0.08677 | D4: 0.08227 | E4: January | F4: 0.08423 | G4: 0.09214 | H4: 0.09179 | I4: January | J4: 0.05549 | K4: 0.06161 | L4: 0.05068 | M4: January | N4: 0.03626 | O4: 0.01806 | P4: 0.01261
A5: February | B5: 0.10559 | C5: 0.0843 | D5: 0.08639 | E5: February | F5: 0.10384 | G5: 0.09678 | H5: 0.09851 | I5: February | J5: 0.06981 | K5: 0.04095 | L5: 0.03961 | M5: February | N5: 0.02231 | O5: 0.01118 | P5: 0.0133
A6: March | B6: 0.08409 | C6: 0.06886 | D6: 0.07135 | E6: March | F6: 0.09022 | G6: 0.10299 | H6: 0.1061 | I6: March | J6: 0.03604 | K6: 0.0574 | L6: 0.0629 | M6: March | N6: 0.01103 | O6: -0.008 | P6: -0.00027
A7: April | B7: 0.06874 | C7: 0.10218 | D7: 0.10778 | E7: April | F7: 0.12115 | G7: 0.11177 | H7: 0.11132 | I7: April | J7: 0.06705 | K7: 0.09268 | L7: 0.09559 | M7: April | N7: -0.00965 | O7: 0.05453 | P7: 0.05198
A8: May | B8: 0.10623 | C8: 0.12776 | D8: 0.12307 | E8: May | F8: 0.10405 | G8: 0.11493 | H8: 0.10749 | I8: May | J8: 0.09416 | K8: 0.0973 | L8: 0.09668 | M8: May | N8: 0.05356 | O8: 0.07352 | P8: 0.07196
A9: June | B9: 0.11954 | C9: 0.12563 | D9: 0.11848 | E9: June | F9: 0.1165 | G9: 0.0936 | H9: 0.09545 | I9: June | J9: 0.09228 | K9: 0.09768 | L9: 0.0954 | M9: June | N9: 0.0719 | O9: 0.06664 | P9: 0.06025
A10: July | B10: 0.10652 | C10: 0.10197 | D10: 0.1128 | E10: July | F10: 0.07667 | G10: 0.08412 | H10: 0.08306 | I10: July | J10: 0.08888 | K10: 0.08413 | L10: 0.07883 | M10: July | N10: 0.05976 | O10: 0.05753 | P10: 0.06256
A11: August | B11: 0.115 | C11: 0.10476 | D11: 0.10109 | E11: August | F11: 0.08569 | G11: 0.0705 | H11: 0.07103 | I11: August | J11: 0.08805 | K11: 0.07355 | L11: 0.0801 | M11: August | N11: 0.06108 | O11: 0.06897 | P11: 0.06761
A12: September | B12: 0.12739 | C12: 0.09895 | D12: 0.08864 | E12: September | F12: 0.0706 | G12: 0.09148 | H12: 0.09531 | I12: September | J12: 0.0827 | K12: 0.07191 | L12: 0.06703 | M12: September | N12: 0.08049 | O12: 0.08072 | P12: 0.07963
A13: October | B13: 0.10212 | C13: 0.11973 | D13: 0.12563 | E13: October | F13: 0.0972 | G13: 0.1178 | H13: 0.11226 | I13: October | J13: 0.06371 | K13: 0.07193 | L13: 0.07544 | M13: October | N13: 0.07492 | O13: 0.10135 | P13: 0.10014
A14: November | B14: 0.11164 | C14: 0.09669 | D14: 0.09704 | E14: November | F14: 0.12271 | G14: 0.115 | H14: 0.11109 | I14: November | J14: 0.07623 | K14: 0.12448 | L14: 0.1132 | M14: November | N14: 0.09901 | O14: 0.08504 | P14: 0.08232
A15: December | B15: 0.08391 | C15: 0.09669 | D15: 0.09207 | E15: December | F15: 0.10594 | G15: 0.07872 | H15: 0.08708 | I15: December | J15: 0.11462 | K15: 0.08809 | L15: 0.09471 | M15: December | N15: 0.07318 | O15: 0.05789 | P15: 0.07444

Sheet 2 1 5 TotalConsumptionData_Dist (hidden)
A1: 2.1.5 TotalConsumptionData_Dist_Ret_Total_Combined_Without RateClass_2018
A2: Time run: 5/29/2018 3:56:03 PM
T3: H + F + J | U3: F + J
A4: Filing_Year | B4: Company_Name | F4: Ret_Metered_consumption_in_kWhs | G4: Ret_Metered_consumption_in_kWs | H4: Dist_RPPMeterCustkWh | I4: Dist_RPPMeterCustkW | J4: Dist_NonRPPMeterCustkWh | K4: Dist_NonRPPMeterCustkW | L4: IESOMeterCustkWh | M4: IESOMeterCustKW | N4: Class_A_Consumption_kWhs | O4: Class_A_Consumption_kWs | P4: TotConsmptionforDistCustkWh | Q4: TotConsmptionforDistCustkW | R4: Calculated_TOTAL_KWH | S4: Calculated_TOTAL_KW | T4: Total Metered Excluding WMP | U4: Non RPP
A5: 2018 | B5: ALECTRA UTILITIES CORPORATION | F5: 2735166167 | G5: 5493928 | H5: 8730758764 | I5: 3183669 | J5: 9692001985 | K5: 23895726 | L5: 811776337 | M5: 1381122 | N5: 3450770317 | O5: 6672805 | P5: 19234537086 | Q5: 28460517 | R5: 21969703253 | S5: 33954445 | T5: 21157926916 | U5: 12427168152
A6: 2018 | B6: ALGOMA POWER INC. | F6: 7589178.44 | G6: 8592 | H6: 107041096.1 | I6: 9869.01 | J6: 88433502.85 | K6: 192374.8 | L6: 0 | M6: 0 | N6: 58917721.79 | O6: 99618.3 | P6: 195474598.9 | Q6: 202243.81 | R6: 203063777.4 | S6: 210836.14 | T6: 203063777.4 | U6: 96022681.29
A7: 2018 | B7: ATIKOKAN HYDRO INC. | F7: 1232089.98 | G7: 2603 | H7: 13371836.82 | I7: 0 | J7: 15005971.63 | K7: 42253.94 | L7: 0 | M7: 0 | N7: 4563646.56 | O7: 18088.38 | P7: 28377808.45 | Q7: 42253.94 | R7: 29609898.43 | S7: 44857.54 | T7: 29609898.43 | U7: 16238061.61
A8: 2018 | B8: BLUEWATER POWER DISTRIBUTION CORPORATION | F8: 60613020 | G8: 100189 | H8: 360840844 | I8: 96062 | J8: 439293405 | K8: 938025 | L8: 116775525 | M8: 190405 | N8: 280305798 | O8: 480944 | P8: 916909774 | Q8: 1224492 | R8: 977522794 | S8: 1324681 | T8: 860747269 | U8: 499906425
A9: 2018 | B9: BRANTFORD POWER INC. | F9: 158219509.3 | G9: 332352 | H9: 383768359.6 | I9: 112785.16 | J9: 350272883.2 | K9: 978161.98 | L9: 49798281 | M9: 119621.52 | N9: 116262049 | O9: 226480.18 | P9: 783839523.7 | Q9: 1210568.66 | R9: 942059033 | S9: 1542920.96 | T9: 892260752 | U9: 508492392.5
A10: 2018 | B10: BURLINGTON HYDRO INC. | F10: 176577660 | G10: 405566 | H10: 762645853 | I10: 366461 | J10: 617809779 | K10: 1631018 | L10: 0 | M10: 0 | N10: 126515929 | O10: 310497 | P10: 1380455632 | Q10: 1997479 | R10: 1557033292 | S10: 2403045 | T10: 1557033292 | U10: 794387439
A11: 2018 | B11: CANADIAN NIAGARA POWER INC. | F11: 29686787.5 | G11: 33427 | H11: 254865795.3 | I11: 45229.73 | J11: 168246626.3 | K11: 528462.72 | L11: 0 | M11: 0 | N11: 58621262.45 | O11: 176722.29 | P11: 423112421.6 | Q11: 573692.45 | R11: 452799209.1 | S11: 607120.2 | T11: 452799209.1 | U11: 197933413.8
A12: 2018 | B12: CENTRE WELLINGTON HYDRO LTD. | F12: 15455698 | G12: 22790 | H12: 61928647 | I12: 5373.88 | J12: 57244721 | K12: 150396.32 | L12: 2990901.7 | M12: 5479.21 | N12: 0 | O12: 0 | P12: 122164269.7 | Q12: 161249.41 | R12: 137619967.7 | S12: 184040.21 | T12: 134629066 | U12: 72700419
A13: 2018 | B13: CHAPLEAU PUBLIC UTILITIES CORPORATION | F13: 478450 | G13: 750 | H13: 17529372 | I13: 826.69 | J13: 6565386 | K13: 16771 | L13: 0 | M13: 0 | N13: 0 | O13: 0 | P13: 24094758 | Q13: 17597.69 | R13: 24573208 | S13: 18348.29 | T13: 24573208 | U13: 7043836
A14: 2018 | B14: COLLUS POWERSTREAM CORP. | F14: 36838997.08 | G14: 62008 | H14: 156368050.8 | I14: 27806.93 | J14: 95469385.26 | K14: 223834.7 | L14: 2622219.85 | M14: 4948.96 | N14: 43660807.75 | O14: 88754.7 | P14: 254459655.9 | Q14: 256590.59 | R14: 291298653 | S14: 318599.03 | T14: 288676433.2 | U14: 132308382.3
A15: 2018 | B15: COOPERATIVE HYDRO EMBRUN INC. | F15: 798369 | G15: 0 | H15: 23247457 | I15: 0 | J15: 3782579 | K15: 11209 | L15: 0 | M15: 0 | N15: 0 | O15: 0 | P15: 27030036 | Q15: 11209 | R15: 27828405 | S15: 11209 | T15: 27828405 | U15: 4580948
A16: 2018 | B16: E.L.K. ENERGY INC. | F16: 1 | G16: 1 | H16: 107468847 | I16: 7540 | J16: 112352023 | K16: 187474 | L16: 0 | M16: 0 | N16: 10527574 | O16: 55609 | P16: 219820870 | Q16: 195014 | R16: 219820871 | S16: 195015 | T16: 219820871 | U16: 112352024
A17: 2018 | B17: ENERGY+ INC. | F17: 227507289 | G17: 504762 | H17: 650599864.1 | I17: 121226.4 | J17: 724724625.7 | K17: 2171002.76 | L17: 40066139.26 | M17: 67941.7 | N17: 177256773.6 | O17: 388700.96 | P17: 1415390629 | Q17: 2360170.86 | R17: 1642897918 | S17: 2864932.86 | T17: 1602831779 | U17: 952231914.7
A18: 2018 | B18: ENTEGRUS POWERLINES INC. | F18: 136208933 | G18: 265808 | H18: 375649810.4 | I18: 99051.96333 | J18: 367692738.3 | K18: 1063877.45 | L18: 4583831.73 | M18: 11680.77 | N18: 238476526 | O18: 548902 | P18: 747926380.5 | Q18: 1174610.183 | R18: 884135313.5 | S18: 1440418.183 | T18: 879551481.7 | U18: 503901671.3
A19: 2018 | B19: ENWIN UTILITIES LTD. | F19: 210569707 | G19: 444018 | H19: 911300246.8 | I19: 483761.84 | J19: 1002407656 | K19: 2271498.2 | L19: 242857315.5 | M19: 463568.8 | N19: 495677164.1 | O19: 975912 | P19: 2156565218 | Q19: 3218828.84 | R19: 2367134925 | S19: 3662847.64 | T19: 2124277610 | U19: 1212977363
A20: 2018 | B20: ERIE THAMES POWERLINES CORPORATION | F20: 52664112 | G20: 109464 | H20: 170501882 | I20: 53268.71 | J20: 255076321 | K20: 502211.92 | L20: 0 | M20: 0 | N20: 108673765 | O20: 247265.74 | P20: 425578203 | Q20: 555480.63 | R20: 478242315 | S20: 664944.63 | T20: 478242315 | U20: 307740433
A21: 2018 | B21: ESPANOLA REGIONAL HYDRO DISTRIBUTION CORPORATION | F21: 8259498.4 | G21: 14739 | H21: 37401936.7 | I21: 2791.9 | J21: 8855247.9 | K21: 21742.1 | L21: 0 | M21: 0 | N21: 0 | O21: 0 | P21: 46257184.6 | Q21: 24534 | R21: 54516683 | S21: 39273 | T21: 54516683 | U21: 17114746.3
A22: 2018 | B22: ESSEX POWERLINES CORPORATION | F22: 68913583.1 | G22: 169060 | H22: 299644634.1 | I22: 56516.35 | J22: 111682700.5 | K22: 322405.04 | L22: 10695832.89 | M22: 20658.14 | N22: 4507656.12 | O22: 12525.04 | P22: 422023167.5 | Q22: 399579.53 | R22: 490936750.6 | S22: 568640.38 | T22: 480240917.7 | U22: 180596283.6
A23: 2018 | B23: FESTIVAL HYDRO INC. | F23: 127658497.1 | G23: 282391 | H23: 192146831.3 | I23: 54830.8 | J23: 269823282.3 | K23: 601038.38 | L23: 3139758.12 | M23: 5723.72 | N23: 178028756.2 | O23: 370404.2 | P23: 465109871.7 | Q23: 661592.9 | R23: 592768368.8 | S23: 943984.14 | T23: 589628610.7 | U23: 397481779.4
A24: 2018 | B24: FORT FRANCES POWER CORPORATION | F24: 727134.55 | G24: 0 | H24: 52620671 | I24: 0 | J24: 18961128 | K24: 49880 | L24: 0 | M24: 0 | N24: 0 | O24: 0 | P24: 71581799 | Q24: 49880 | R24: 72308933.55 | S24: 49880 | T24: 72308933.55 | U24: 19688262.55
A25: 2018 | B25: GREATER SUDBURY HYDRO INC. | F25: 83591639.68 | G25: 147260 | H25: 514629971 | I25: 173561.67 | J25: 245875032.9 | K25: 570066.76 | L25: 3624729.23 | M25: 6810.36 | N25: 36594283.76 | O25: 138457.79 | P25: 764129733.1 | Q25: 750438.79 | R25: 847721372.8 | S25: 897699.23 | T25: 844096643.6 | U25: 329466672.6
A26: 2018 | B26: GRIMSBY POWER INCORPORATED | F26: 17783005.86 | G26: 33510 | H26: 105239592.1 | I26: 7372.42 | J26: 76441698.94 | K26: 249262.46 | L26: 3429861.18 | M26: 6718.85 | N26: 1987519.2 | O26: 4930.41 | P26: 185111152.2 | Q26: 263353.73 | R26: 202894158.1 | S26: 296864.11 | T26: 199464296.9 | U26: 94224704.8
A27: 2018 | B27: GUELPH HYDRO ELECTRIC SYSTEMS INC. | F27: 197114360.4 | G27: 375574 | H27: 477444082.9 | I27: 94778.64 | J27: 921412854.8 | K27: 2146272.7 | L27: 6196613.7 | M27: 13103.85 | N27: 562293627.9 | O27: 1084589.18 | P27: 1405053551 | Q27: 2254155.19 | R27: 1602167912 | S27: 2629729.92 | T27: 1595971298 | U27: 1118527215
A28: 2018 | B28: HALTON HILLS HYDRO INC. | F28: 67385238 | G28: 128208 | H28: 245359146 | I28: 54012 | J28: 164250010 | K28: 471178 | L28: 4234039 | M28: 7376 | N28: 44894121 | O28: 128188 | P28: 413843195 | Q28: 532566 | R28: 481228433 | S28: 660774 | T28: 476994394 | U28: 231635248
A29: 2018 | B29: HEARST POWER DISTRIBUTION COMPANY LTD. | F29: 4459529 | G29: 8648 | H29: 34531487 | I29: 15231 | J29: 38261730 | K29: 97243 | L29: 0 | M29: 0 | N29: 0 | O29: 0 | P29: 72793217 | Q29: 112474 | R29: 77252746 | S29: 121122 | T29: 77252746 | U29: 42721259
A30: 2018 | B30: HYDRO 2000 INC. | F30: 791335 | G30: 0 | H30: 6896834 | I30: 5327 | J30: 1308656 | K30: 389.4 | L30: 0 | M30: 0 | N30: 0 | O30: 0 | P30: 8205490 | Q30: 5716.4 | R30: 8996825 | S30: 5716.4 | T30: 8996825 | U30: 2099991
A31: 2018 | B31: HYDRO HAWKESBURY INC. | F31: 11823941.73 | G31: 17702 | H31: 60851387 | I31: 199 | J31: 66281756 | K31: 170891 | L31: 0 | M31: 0 | N31: 6068661.74 | O31: 14240.84 | P31: 127133143 | Q31: 171090 | R31: 138957084.7 | S31: 188792.4 | T31: 138957084.7 | U31: 78105697.73
A32: 2018 | B32: HYDRO ONE NETWORKS INC. | F32: 2601735431 | G32: 2058232 | H32: 1.421623968e+10 | I32: 0 | J32: 7130075923 | K32: 20184160.97 | L32: 9848217318 | M32: 19492592.78 | N32: 3007063246 | O32: 6506853.94 | P32: 3.119453292e+10 | Q32: 39676753.75 | R32: 3.379626835e+10 | S32: 41734986.55 | T32: 2.394805103e+10 | U32: 9731811353
A33: 2018 | B33: HYDRO ONE REMOTE COMMUNITIES INC. | F33: 0 | G33: 0 | H33: 0 | I33: 0 | J33: 0 | K33: 0 | L33: 0 | M33: 0 | P33: 0 | Q33: 0 | R33: 0 | S33: 0 | T33: 0 | U33: 0
A34: 2018 | B34: HYDRO OTTAWA LIMITED | F34: 596269945 | G34: 1018231 | H34: 3073564932 | I34: 839071 | J34: 3517410049 | K34: 7921222 | L34: 33972968 | M34: 63608 | N34: 792796607 | O34: 1509115 | P34: 6624947949 | Q34: 8823901 | R34: 7221217894 | S34: 9842132 | T34: 7187244926 | U34: 4113679994
A35: 2018 | B35: INNPOWER CORPORATION | F35: 19743663.52 | G35: 26895 | H35: 169038199.5 | I35: 11536.66 | J35: 53490349.8 | K35: 126552.88 | L35: 0 | M35: 0 | N35: 0 | O35: 0 | P35: 222528549.3 | Q35: 138089.54 | R35: 242272212.8 | S35: 164985.39 | T35: 242272212.9 | U35: 73234013.32
A36: 2018 | B36: KENORA HYDRO ELECTRIC CORPORATION LTD. | F36: 17441922 | G36: 34899 | H36: 76633740 | I36: 12938 | J36: 0 | K36: 47808 | L36: 0 | M36: 0 | N36: 0 | O36: 0 | P36: 76633740 | Q36: 60746 | R36: 94075662 | S36: 95645 | T36: 94075662 | U36: 17441922
A37: 2018 | B37: KINGSTON HYDRO CORPORATION | F37: 114319077.9 | G37: 187110 | H37: 282569526.5 | I37: 91031.89 | J37: 286949290.8 | K37: 655846.54 | L37: 3991091.73 | M37: 7194.82 | N37: 167050916.5 | O37: 309046.13 | P37: 573509909 | Q37: 754073.25 | R37: 687828986.9 | S37: 941183.38 | T37: 683837895.2 | U37: 401268368.7
A38: 2018 | B38: KITCHENER-WILMOT HYDRO INC. | F38: 228479344.1 | G38: 483788 | H38: 920148191.6 | I38: 0 | J38: 544745703 | K38: 1696000.82 | L38: 36015512.64 | M38: 75203.73 | N38: 101928298.7 | O38: 246827.27 | P38: 1500909407 | Q38: 1771204.55 | R38: 1729388751 | S38: 2254993.34 | T38: 1693373239 | U38: 773225047.1
A39: 2018 | B39: LAKEFRONT UTILITIES INC. | F39: 47054173.2 | G39: 98097 | H39: 107185873.8 | I39: 37571.91 | J39: 82165013.35 | K39: 217260.25 | L39: 0 | M39: 0 | N39: 35989737.78 | O39: 67522.6 | P39: 189350887.1 | Q39: 254832.16 | R39: 236405060.3 | S39: 352929.99 | T39: 236405060.3 | U39: 129219186.5
A40: 2018 | B40: LAKELAND POWER DISTRIBUTION LTD. | F40: 40223748.53 | G40: 63614 | H40: 153225832.7 | I40: 13735.84 | J40: 85383662.41 | K40: 205934.76 | L40: 0 | M40: 0 | N40: 21850617.45 | O40: 46473.14 | P40: 238609495.1 | Q40: 219670.6 | R40: 278833243.6 | S40: 283285.49 | T40: 278833243.6 | U40: 125607410.9
A41: 2018 | B41: LONDON HYDRO INC. | F41: 308291183 | G41: 544177 | H41: 1460615181 | I41: 326018.82 | J41: 1301468785 | K41: 3339530.28 | L41: 0 | M41: 29977.91 | N41: 380970587.8 | O41: 882768.7 | P41: 2762083966 | Q41: 3695527.01 | R41: 3070375149 | S41: 4239704.01 | T41: 3070375149 | U41: 1609759968
A42: 2018 | B42: MIDLAND POWER UTILITY CORPORATION | F42: 38551704.28 | G42: 77134 | H42: 70437021.28 | I42: 27565.94 | J42: 69549138.44 | K42: 177384.71 | L42: 3744910.71 | M42: 6972.13 | N42: 22526218 | O42: 7643.95 | P42: 143731070.4 | Q42: 211922.78 | R42: 182282774.7 | S42: 289056.84 | T42: 178537864 | U42: 108100842.7
A43: 2018 | B43: MILTON HYDRO DISTRIBUTION INC. | F43: 55999485 | G43: 83880 | H43: 392752396 | I43: 111784 | J43: 408481334 | K43: 937468 | L43: 4746499 | M43: 10149 | N43: 172175189 | O43: 348415 | P43: 805980229 | Q43: 1059401 | R43: 861979714 | S43: 1143281 | T43: 857233215 | U43: 464480819
A44: 2018 | B44: NEWMARKET - TAY POWER DISTRIBUTION LTD. | F44: 66556759 | G44: 109844 | H44: 344187239 | I44: 0 | J44: 176027521 | K44: 556827 | L44: 4601246 | M44: 9614 | N44: 35496456 | O44: 70815 | P44: 524816006 | Q44: 566441 | R44: 591372765 | S44: 676285 | T44: 586771519 | U44: 242584280
A45: 2018 | B45: NIAGARA PENINSULA ENERGY INC. | F45: 106112631.2 | G45: 173790 | H45: 526127849 | I45: 75196 | J45: 532194727 | K45: 1358241 | L45: 0 | M45: 0 | N45: 54341326 | O45: 124075 | P45: 1058322576 | Q45: 1433437 | R45: 1164435207 | S45: 1607227.04 | T45: 1164435207 | U45: 638307358.2
A46: 2018 | B46: NIAGARA-ON-THE-LAKE HYDRO INC. | F46: 27480635.14 | G46: 50044 | H46: 110282243.6 | I46: 16035.96 | J46: 59196383.85 | K46: 148921.27 | L46: 0 | M46: 0 | N46: 2849283 | O46: 5918.4 | P46: 169478627.5 | Q46: 164957.23 | R46: 196959262.6 | S46: 215002.21 | T46: 196959262.6 | U46: 86677018.99
A47: 2018 | B47: NORTH BAY HYDRO DISTRIBUTION LIMITED | F47: 45530674.26 | G47: 75924 | H47: 258570810 | I47: 41533.81 | J47: 178297061.8 | K47: 447819.35 | L47: 0 | M47: 0 | N47: 29330105.56 | O47: 62610.49 | P47: 436867871.9 | Q47: 489353.16 | R47: 482398546.1 | S47: 565277.42 | T47: 482398546.1 | U47: 223827736.1
A48: 2018 | B48: NORTHERN ONTARIO WIRES INC. | F48: 13624092 | G48: 34796 | H48: 51609507 | I48: 0 | J48: 50707181 | K48: 61694.21 | L48: 0 | M48: 0 | N48: 5163181 | O48: 15783 | P48: 102316688 | Q48: 61694.21 | R48: 115940780 | S48: 96490.21 | T48: 115940780 | U48: 64331273
A49: 2018 | B49: OAKVILLE HYDRO ELECTRICITY DISTRIBUTION INC. | F49: 199562514.3 | G49: 396925 | H49: 750012566.4 | I49: 181933.94 | J49: 593521151.4 | K49: 1524680.94 | L49: 4447403.88 | M49: 8578.57 | N49: 117050989 | O49: 231635 | P49: 1347981122 | Q49: 1715193.45 | R49: 1547543636 | S49: 2112118.53 | T49: 1543096232 | U49: 793083665.7
A50: 2018 | B50: ORANGEVILLE HYDRO LIMITED | F50: 37582777.5 | G50: 70650 | H50: 117466613.4 | I50: 27469.53 | J50: 89339545.3 | K50: 203879.72 | L50: 3134543.98 | M50: 5789.36 | N50: 23243911 | O50: 43117.86 | P50: 209940702.7 | Q50: 237138.61 | R50: 247523480.2 | S50: 307788.63 | T50: 244388936.2 | U50: 126922322.8
A51: 2018 | B51: ORILLIA POWER DISTRIBUTION CORPORATION | F51: 42657306 | G51: 75668 | H51: 151684388 | I51: 61764 | J51: 105779745 | K51: 293102 | L51: 3101125 | M51: 5729 | N51: 42926384 | O51: 111749 | P51: 260565258 | Q51: 360595 | R51: 303222564 | S51: 436263 | T51: 300121439 | U51: 148437051
A52: 2018 | B52: OSHAWA PUC NETWORKS INC. | F52: 134435450 | G52: 228900 | H52: 633383354 | I52: 256359 | J52: 261438191 | K52: 685710 | L52: 7037828 | M52: 12794 | N52: 67594546 | O52: 149891 | P52: 901859373 | Q52: 954863 | R52: 1036294823 | S52: 1183763 | T52: 1029256995 | U52: 395873641
A53: 2018 | B53: OTTAWA RIVER POWER CORPORATION | F53: 22393970 | G53: 29784 | H53: 113931089 | I53: 40369.41 | J53: 41609122 | K53: 152669.37 | L53: 0 | M53: 0 | N53: 0 | O53: 0 | P53: 155540211 | Q53: 193038.78 | R53: 177934181 | S53: 222823.18 | T53: 177934181 | U53: 64003092
A54: 2018 | B54: PETERBOROUGH DISTRIBUTION INCORPORATED | F54: 134391196 | G54: 287869 | H54: 431934965 | I54: 102367 | J54: 195336597 | K54: 520693 | L54: 0 | M54: 5698 | N54: 112820304 | O54: 202403 | P54: 627271562 | Q54: 628758 | R54: 761662758 | S54: 916627 | T54: 761662758 | U54: 329727793
A55: 2018 | B55: PUC DISTRIBUTION INC. | F55: 68328727.82 | G55: 94384 | H55: 391333852.5 | I55: 125818.98 | J55: 162879933 | K55: 398210.38 | L55: 0 | M55: 0 | N55: 13841829 | O55: 24617 | P55: 554213785.5 | Q55: 524029.36 | R55: 622542513.3 | S55: 618413.45 | T55: 622542513.3 | U55: 231208660.8
A56: 2018 | B56: RENFREW HYDRO INC. | F56: 7962918 | G56: 11075 | H56: 40532948 | I56: 0 | J56: 36668859 | K56: 106335 | L56: 0 | M56: 0 | N56: 6097514.34 | O56: 11612.5 | P56: 77201807 | Q56: 106335 | R56: 85164725 | S56: 117410 | T56: 85164725 | U56: 44631777
A57: 2018 | B57: RIDEAU ST. LAWRENCE DISTRIBUTION INC. | F57: 8271777 | G57: 11849 | H57: 57793632 | I57: 6443.02 | J57: 32772900 | K57: 95654.09 | L57: 0 | M57: 0 | N57: 2193596 | O57: 7375.6 | P57: 90566532 | Q57: 102097.11 | R57: 98838309 | S57: 113946.93 | T57: 98838309 | U57: 41044677
A58: 2018 | B58: SIOUX LOOKOUT HYDRO INC. | F58: 8357674.86 | G58: 0 | H58: 49069036.51 | I58: 12717.37 | J58: 16606348.61 | K58: 50073.69 | L58: 0 | M58: 0 | N58: 0 | O58: 0 | P58: 65675385.12 | Q58: 62791.06 | R58: 74033059.98 | S58: 62791.06 | T58: 74033059.98 | U58: 24964023.47
A59: 2018 | B59: ST. THOMAS ENERGY INC. | F59: 47144480.9 | G59: 71939 | H59: 144544013.1 | I59: 25062.86 | J59: 79830093.4 | K59: 205873.8 | L59: 3784934.67 | M59: 7228.33 | N59: 21216894.31 | O59: 50308.93 | P59: 228159041.2 | Q59: 238164.99 | R59: 275303522.1 | S59: 310104.89 | T59: 271518587.4 | U59: 126974574.3
A60: 2018 | B60: THUNDER BAY HYDRO ELECTRICITY DISTRIBUTION INC. | F60: 102344002 | G60: 208552 | H60: 500532638 | I60: 182825 | J60: 285232196 | K60: 805578 | L60: 0 | M60: 0 | N60: 85869306 | O60: 236694 | P60: 785764834 | Q60: 988403 | R60: 888108836 | S60: 1196955 | T60: 888108836 | U60: 387576198
A61: 2018 | B61: TILLSONBURG HYDRO INC. | F61: 47401197.27 | G61: 99170 | H61: 91370321.4 | I61: 180162.14 | J61: 44870438.42 | K61: 301517.93 | L61: 0 | M61: 0 | N61: 48585894 | O61: 108682.9 | P61: 136240759.8 | Q61: 481680.07 | R61: 183641957.1 | S61: 580850.74 | T61: 183641957.1 | U61: 92271635.69
A62: 2018 | B62: TORONTO HYDRO-ELECTRIC SYSTEM LIMITED | F62: 2716005308 | G62: 5227202 | H62: 9761714371 | I62: 7467371 | J62: 11113172094 | K62: 26791726 | L62: 330749827 | M62: 609405 | N62: 3698003210 | O62: 7128105 | P62: 21205636292 | Q62: 34868502 | R62: 2.39216416e+10 | S62: 40095704.23 | T62: 2.359089177e+10 | U62: 1.38291774e+10
A63: 2018 | B63: VERIDIAN CONNECTIONS INC. | F63: 250846891 | G63: 390824 | H63: 1202178782 | I63: 257570 | J63: 1017409890 | K63: 2245224 | L63: 38095925 | M63: 74250 | N63: 413770175 | O63: 787331 | P63: 2257684597 | Q63: 2577044 | R63: 2508531488 | S63: 2967868 | T63: 2470435563 | U63: 1268256781
A64: 2018 | B64: WASAGA DISTRIBUTION INC. | F64: 5949165 | G64: 7692 | H64: 102876476 | I64: 0 | J64: 13049895 | K64: 43991 | L64: 2803203 | M64: 5557.58 | N64: 0 | O64: 0 | P64: 118729574 | Q64: 49548.58 | R64: 124678739 | S64: 57241.28 | T64: 121875536 | U64: 18999060
A65: 2018 | B65: WATERLOO NORTH HYDRO INC. | F65: 160419170 | G65: 0 | H65: 622290344 | I65: 226725 | J65: 613994469 | K65: 1806390 | L65: 6231611 | M65: 0 | N65: 196274835 | O65: 0 | P65: 1242516424 | Q65: 2033115 | R65: 1402935594 | S65: 2033115 | T65: 1396703983 | U65: 774413639
A66: 2018 | B66: WELLAND HYDRO-ELECTRIC SYSTEM CORP. | F66: 21700736 | G66: 21361 | H66: 206509127 | I66: 39819 | J66: 122493159 | K66: 336940 | L66: 3013780 | M66: 5518 | N66: 14542159 | O66: 61045 | P66: 332016066 | Q66: 382277 | R66: 353716802 | S66: 403638 | T66: 350703022 | U66: 144193895
A67: 2018 | B67: WELLINGTON NORTH POWER INC. | F67: 32532737 | G67: 61566 | H67: 32600314 | I67: 1329 | J67: 35644424 | K67: 91077 | L67: 0 | M67: 0 | N67: 11318188.36 | O67: 19738.8 | P67: 68244738 | Q67: 92406 | R67: 100777475 | S67: 153972 | T67: 100777475 | U67: 68177161
A68: 2018 | B68: WEST COAST HURON ENERGY INC. | F68: 16301729 | G68: 28280 | H68: 37879556 | I68: 10155.73 | J68: 21704799 | K68: 60671.87 | L68: 63334264 | M68: 158301.4 | N68: 8950719 | O68: 16378.6 | P68: 122918619 | Q68: 229129 | R68: 139220348 | S68: 257409.34 | T68: 75886084 | U68: 38006528
A69: 2018 | B69: WESTARIO POWER INC. | F69: 87932552.5 | G69: 158356 | H69: 229816799 | I69: 25979 | J69: 98535155 | K69: 262152 | L69: 1827725 | M69: 4899 | N69: 36676918 | O69: 75716 | P69: 330179679 | Q69: 293030 | R69: 418112231.5 | S69: 451386.9 | T69: 416284506.5 | U69: 186467707.5
A70: 2018 | B70: WHITBY HYDRO ELECTRIC CORPORATION | F70: 106725615 | G70: 185907 | H70: 449207866 | I70: 135039 | J70: 263146477 | K70: 601259 | L70: 4279141 | M70: 8605 | N70: 98787815 | O70: 171705 | P70: 716633484 | Q70: 744903 | R70: 823359099 | S70: 930810 | T70: 819079958 | U70: 369872092
